bitfinex-derivatives/quotes_SOLF0:USTF0_20251115
["timestamp","ask_amount","ask_price","bid_price","bid_amount"]
[1763178170970,4.95725929,142.59,142.52,1.61725929]
[1763178171477,0.05191894,142.57,142.54,0.04931691]
[1763178171873,0.05191894,142.57,142.54,1.6665762]
[1763178176582,3.39191894,142.57,142.54,1.6665762]
[1763178179389,0.05191894,142.57,142.54,1.6665762]
[1763178181482,3.39191894,142.57,142.54,0.04931691]
[1763178181682,5.00917823,142.57,142.54,0.04931691]
[1763178181890,3.34,142.56,142.54,0.04931691]
[1763178183388,1.66917823,142.57,142.54,0.04931691]
[1763178183389,0.05191894,142.57,142.54,0.04931691]
[1763178183785,3.25191894,142.57,142.54,0.04931691]
[1763178187785,8.71719607,142.7,142.56,1.61725929]
[1763178187786,3.2,142.62,142.56,1.61725929]
[1763178187985,3.2,142.62,142.58,1.61725929]
[1763178188288,3.2,142.62,142.56,10.33158397]
[1763178188991,3.25380423,142.6,142.58,1.66649583]
[1763178190789,0.05380423,142.6,142.58,1.66649583]
[1763178191092,0.05380423,142.6,142.58,0.04923654]
[1763178191295,0.05380423,142.6,142.59,1.61725929]
[1763178195499,3.16,142.65,142.59,10.33158397]
[1763178195700,3.16,142.68,142.63,1.61725929]
[1763178196497,3.16,142.68,142.64,0.05327281]
[1763178196702,3.16,142.66,142.64,0.05327281]
[1763178198396,3.20480202,142.67,142.64,0.05327281]
[1763178199108,3.20480202,142.67,142.65,1.61725929]
[1763178204806,3.20480202,142.67,142.64,0.05327281]
[1763178207013,3.20480202,142.67,142.64,1.6705321]
[1763178207205,0.04480202,142.67,142.64,1.6705321]
[1763178207704,0.04480202,142.67,142.66,1.61725929]
[1763178209904,3.20480202,142.67,142.64,0.05327281]
[1763178210104,0.04480202,142.67,142.66,1.61725929]
[1763178214409,3.14,142.72,142.66,1.61725929]
[1763178214605,3.14,142.72,142.68,1.61725929]
[1763178215418,3.14,142.7,142.69,0.04839773]
[1763178217120,3.19369278,142.71,142.69,0.04839773]
[1763178217315,3.19369278,142.71,142.7,1.61725929]
[1763178222528,0.05369278,142.71,142.7,1.61725929]
[1763178222724,3.14,142.76,142.7,1.61725929]
[1763178222925,3.14,142.76,142.75,1.61725929]
[1763178223125,3.14,142.76,142.67,8.71432468]
[1763178223327,3.14,142.76,142.72,1.61725929]
[1763178224033,3.14,142.74,142.73,0.04909769]
[1763178224222,3.14,142.74,142.72,1.66466229]
[1763178225133,0.04642572,142.75,142.72,1.66466229]
[1763178225328,3.18642572,142.75,142.74,1.61725929]
[1763178225528,3.18642572,142.75,142.72,0.047403]
[1763178225529,3.18642572,142.75,142.72,1.66466229]
[1763178228136,3.14,142.78,142.74,1.61725929]
[1763178229126,3.14,142.78,142.75,0.05177583]
[1763178229330,3.19374823,142.77,142.75,0.05177583]
[1763178239334,0.05374823,142.77,142.75,2.57253502]
[1763178240838,3.19374823,142.77,142.75,0.05177583]
[1763178254649,0.05374823,142.77,142.75,0.05177583]
[1763178255255,3.11374823,142.77,142.75,0.05177583]
[1763178260758,29.6510039,142.87,142.76,2.52075919]
[1763178260759,3.06,142.83,142.76,2.52075919]
[1763178260957,3.06,142.83,142.77,8.72391469]
[1763178261257,3.06,142.83,142.78,8.72391469]
[1763178261458,3.06,142.87,142.8,8.72391469]
[1763178261755,2.52075919,142.88,142.82,0.05084959]
[1763178261756,3.06,142.84,142.82,0.05084959]
[1763178264161,3.06,142.84,142.83,6.52957402]
[1763178265459,3.06,142.84,142.82,6.58042361]
[1763178265655,3.10439385,142.85,142.82,6.58042361]
[1763178266057,3.10439385,142.85,142.82,6.57712576]
[1763178266860,3.06,142.9,142.84,11.24467388]
[1763178267055,3.06,142.93,142.87,6.5212566]
[1763178267262,3.06,142.93,142.88,6.5212566]
[1763178267851,0.04695926,142.92,142.89,0.05056218]
[1763178268058,3.10695926,142.92,142.89,0.05056218]
[1763178268260,0.04695926,142.92,142.89,0.05056218]
[1763178268660,3.10695926,142.92,142.89,6.57181878]
[1763178268858,3.10695926,142.92,142.89,0.05056218]
[1763178269158,0.04695926,142.92,142.89,0.05056218]
[1763178269362,3.10695926,142.92,142.89,0.05056218]
[1763178270659,0.04695926,142.92,142.9,2.52075919]
[1763178271665,3.06,142.98,142.9,2.52075919]
[1763178271965,3.06,142.98,142.92,2.52075919]
[1763178272861,3.10582969,142.96,142.94,0.04563663]
[1763178279673,3.10582969,142.96,142.84,6.5212566]
[1763178279872,3.06,142.96,142.88,2.52075919]
[1763178280468,2.52075919,142.95,142.86,2.52075919]
[1763178280674,3.14099729,142.92,142.89,0.04913486]
[1763178282080,0.05099729,142.92,142.89,0.04913486]
[1763178290689,3.14099729,142.92,142.89,0.04913486]
[1763178300704,0.05099729,142.92,142.9,1.60927607]
[1763178301105,3.14099729,142.92,142.89,0.04913486]
[1763178301295,0.05099729,142.92,142.89,1.65841093]
[1763178301798,3.14099729,142.92,142.89,1.65841093]
[1763178303808,3.19099729,142.92,142.89,1.65841093]
[1763178304304,3.19099729,142.92,142.89,8.10426394]
[1763178304903,3.19099729,142.92,142.89,1.65841093]
[1763178305204,3.19099729,142.92,142.89,8.10426394]
[1763178306208,3.19099729,142.92,142.9,6.44585301]
[1763178306603,0.05099729,142.92,142.9,6.44585301]
[1763178307303,0.05099729,142.92,142.89,10.25288161]
[1763178307304,0.05099729,142.92,142.91,6.44585301]
[1763178307503,3.19099729,142.92,142.91,6.44585301]
[1763178307709,3.19099729,142.92,142.9,6.44585301]
[1763178308601,3.19099729,142.92,142.89,6.49498787]
[1763178308806,3.19099729,142.92,142.87,3.12498787]
[1763178309001,1.60927607,142.91,142.87,3.12498787]
[1763178309197,3.14,142.88,142.84,8.59447068]
[1763178309402,3.14,142.86,142.81,10.20374675]
[1763178309805,3.14,142.84,142.82,0.04608659]
[1763178321113,3.28,142.83,142.75,8.59447068]
[1763178321324,3.28,142.83,142.76,1.60927607]
[1763178322212,3.28,142.8,142.78,0.04890566]
[1763178325318,3.28,142.78,142.72,1.60927607]
[1763178325720,3.28,142.78,142.71,2.85]
[1763178326319,3.28,142.75,142.73,0.04843782]
[1763178327613,0.05309929,142.76,142.74,1.60927607]
[1763178327814,3.33309929,142.76,142.73,0.04843782]
[1763178328619,3.28,142.75,142.69,1.60927607]
[1763178329820,3.28,142.72,142.71,0.04647709]
[1763178330617,3.28,142.72,142.67,1.60927607]
[1763178331820,3.28,142.72,142.69,1.60927607]
[1763178332012,3.33006232,142.72,142.69,1.65482131]
[1763178332424,3.33006232,142.72,142.69,0.04554524]
[1763178335920,0.05006232,142.72,142.7,4.53927607]
[1763178336327,3.37006232,142.72,142.7,1.60927607]
[1763178337029,3.37006232,142.72,142.69,0.04554524]
[1763178337228,3.37006232,142.72,142.69,1.65482131]
[1763178337730,3.37006232,142.72,142.69,0.04554524]
[1763178342624,3.37006232,142.72,142.65,1.60927607]
[1763178342829,3.32,142.72,142.65,1.60927607]
[1763178343732,3.37170466,142.7,142.67,0.04521677]
[1763178343920,3.36514027,142.7,142.67,0.04447612]
[1763178354137,3.36514027,142.7,142.64,1.60927607]
[1763178354340,3.32,142.7,142.64,1.60927607]
[1763178354937,3.32,142.7,142.64,2.52325348]
[1763178355136,3.32,142.67,142.66,0.05032833]
[1763178361836,3.37069121,142.68,142.66,0.05032833]
[1763178363343,0.05069121,142.68,142.66,5.59358181]
[1763178363540,0.05069121,142.68,142.67,3.02]
[1763178363936,3.32,142.72,142.67,3.02]
[1763178364843,3.36,142.7,142.67,3.02]
[1763178365039,3.36,142.7,142.67,3.07336959]
[1763178365234,0.04641825,142.71,142.67,3.07336959]
[1763178365435,3.40641825,142.71,142.67,3.07336959]
[1763178365639,0.04641825,142.71,142.69,3.02]
[1763178366837,0.04641825,142.71,142.7,2.52325348]
[1763178367039,3.36,142.74,142.7,5.54325348]
[1763178367240,3.36,142.74,142.71,3.02]
[1763178368039,3.40841909,142.74,142.71,3.06564336]
[1763178368345,3.40841909,142.74,142.71,0.04564336]
[1763178370846,3.40841909,142.74,142.71,3.05564336]
[1763178371245,3.40841909,142.74,142.71,0.04564336]
[1763178372157,3.40841909,142.74,142.71,3.05564336]
[1763178372358,3.40841909,142.74,142.71,0.04564336]
[1763178372558,3.40841909,142.74,142.71,3.05564336]
[1763178372758,3.40841909,142.74,142.71,0.04564336]
[1763178375657,3.40841909,142.74,142.71,6.56987269]
[1763178375960,3.10841909,142.74,142.72,3.01]
[1763178376459,3.10841909,142.74,142.71,9.57987269]
[1763178378353,3.10841909,142.74,142.71,3.05564336]
[1763178383760,3.10841909,142.74,142.71,0.04564336]
[1763178393660,3.29,142.73,142.66,6.52422933]
[1763178393862,3.29,142.71,142.66,6.52422933]
[1763178394473,3.29,142.71,142.65,6.52422933]
[1763178394772,3.29,142.68,142.67,0.04866639]
[1763178401272,0.05199627,142.69,142.67,3.10866639]
[1763178401475,3.34199627,142.69,142.67,3.10866639]
[1763178402480,3.34199627,142.69,142.67,0.04866639]
[1763178402877,3.34199627,142.69,142.67,9.6445376]
[1763178403081,3.29,142.72,142.68,3.06]
[1763178403272,3.29,142.72,142.69,3.06]
[1763178404073,3.34084774,142.72,142.69,3.10975273]
[1763178404581,3.34084774,142.72,142.69,0.04975273]
[1763178405278,3.34084774,142.72,142.69,9.64580066]
[1763178405479,3.34084774,142.72,142.7,6.53604793]
[1763178405680,3.34084774,142.72,142.69,6.58580066]
[1763178406081,3.34084774,142.72,142.69,9.64580066]
[1763178407687,0.05084774,142.72,142.7,3.06]
[1763178408281,3.34084774,142.72,142.7,3.06]
[1763178408788,3.34084774,142.72,142.7,5.58325348]
[1763178409383,3.34084774,142.72,142.69,0.04975273]
[1763178410792,3.29,142.71,142.64,2.52325348]
[1763178410986,3.29,142.71,142.62,14.17772416]
[1763178411891,3.29,142.67,142.65,0.04643324]
[1763178417798,3.29,142.67,142.59,3.11]
[1763178418002,3.29,142.67,142.62,1.61575589]
[1763178418797,3.29,142.65,142.63,0.04423914]
[1763178443823,3.29,142.65,142.63,3.15423914]
[1763178444019,3.29,142.65,142.63,0.04423914]
[1763178449225,0.05022505,142.66,142.63,3.15423914]
[1763178449417,3.36022505,142.66,142.63,3.15423914]
[1763178451026,3.36022505,142.66,142.63,0.04423914]
[1763178461241,3.07,142.64,142.63,0.04423914]
[1763178461441,3.07,142.64,142.58,10.33058806]
[1763178462338,3.07,142.61,142.6,0.04720128]
[1763178464530,3.11895755,142.62,142.6,3.15720128]
[1763178464736,3.11895755,142.62,142.61,3.11]
[1763178464737,0.04895755,142.62,142.61,3.11]
[1763178473044,0.00506551,142.62,142.61,3.11]
[1763178473935,3.07506551,142.62,142.61,6.56639079]
[1763178474136,3.07506551,142.62,142.6,11.33934796]
[1763178474337,3.07506551,142.62,142.6,9.72359207]
[1763178474543,3.07506551,142.62,142.6,11.33934796]
[1763178475148,3.07506551,142.62,142.6,0.04720128]
[1763178476940,0.00506551,142.62,142.61,6.56639079]
[1763178478950,0.00506551,142.62,142.61,9.09099062]
[1763178479445,0.00506551,142.62,142.61,6.56639079]
[1763178480747,3.07,142.67,142.6,13.81123311]
[1763178480951,3.07,142.67,142.63,9.08739291]
[1763178481252,3.07,142.67,142.63,12.19739291]
[1763178481854,3.07,142.67,142.63,5.63459983]
[1763178482154,3.07,142.65,142.64,0.05255712]
[1763178488247,3.07,142.65,142.6,9.08739291]
[1763178488454,3.13,142.64,142.58,9.08739291]
[1763178488658,3.13,142.64,142.58,6.56279308]
[1763178489254,3.13,142.61,142.6,0.0454933]
[1763178495067,3.26213593,142.62,142.6,3.1554933]
[1763178495863,3.26213593,142.62,142.6,0.0454933]
[1763178497162,0.05213593,142.62,142.6,3.1554933]
[1763178497567,3.26213593,142.62,142.6,3.1554933]
[1763178498064,3.26213593,142.62,142.6,0.0454933]
[1763178499871,3.26213593,142.62,142.6,3.1554933]
[1763178504878,3.26213593,142.62,142.61,5.63459983]
[1763178504879,0.05213593,142.62,142.61,5.63459983]
[1763178505377,0.05213593,142.62,142.61,12.19739291]
[1763178506078,0.05213593,142.62,142.6,9.71828638]
[1763178506278,0.05213593,142.62,142.6,12.24288621]
[1763178506681,0.05213593,142.62,142.61,3.11]
[1763178506980,0.05213593,142.62,142.61,9.67279308]
[1763178507582,3.26213593,142.62,142.61,6.56279308]
[1763178507771,3.26213593,142.62,142.61,3.11]
[1763178507772,0.05213593,142.62,142.61,3.11]
[1763178507977,0.05213593,142.62,142.61,9.67279308]
[1763178509383,0.05213593,142.62,142.61,3.11]
[1763178511082,0.05213593,142.62,142.61,9.67279308]
[1763178513385,0.05213593,142.62,142.61,12.19739291]
[1763178515280,0.05213593,142.62,142.61,12.19165004]
[1763178528096,3.34,142.69,142.62,3.06]
[1763178528297,3.34,142.69,142.65,3.06]
[1763178529393,3.34,142.67,142.66,0.04787993]
[1763178530196,4.74,142.67,142.62,6.55787579]
[1763178530495,0.0467483,142.68,142.61,12.14247562]
[1763178530496,3.34,142.66,142.61,12.14247562]
[1763178530891,3.34,142.66,142.62,3.06]
[1763178531193,0.05027829,142.65,142.63,0.04560249]
[1763178531398,3.34,142.64,142.63,0.04560249]
[1763178532300,3.3874484,142.65,142.63,3.10560249]
[1763178532702,0.0474484,142.65,142.63,3.10560249]
[1763178532999,0.0474484,142.65,142.64,3.06]
[1763178541008,0.0474484,142.65,142.64,4.67538836]
[1763178548515,0.0474484,142.65,142.64,3.06]
[1763178548815,0.0474484,142.65,142.63,4.72099085]
[1763178549913,0.0474484,142.65,142.64,3.06]
[1763178550811,3.13,142.73,142.65,3.06]
[1763178551018,3.13,142.73,142.68,3.06]
[1763178551915,3.13,142.73,142.7,3.06]
[1763178551916,0.05263717,142.72,142.7,3.06]
[1763178552114,3.18313563,142.72,142.7,3.10597967]
[1763178553719,4.79852399,142.72,142.7,3.10597967]
[1763178554023,3.18313563,142.72,142.7,3.10597967]
[1763178554518,3.13,142.71,142.7,0.04597967]
[1763178554713,3.13,142.71,142.66,3.06]
[1763178554909,1.61538836,142.7,142.66,3.06]
[1763178555119,4.74538836,142.7,142.66,3.06]
[1763178555711,4.74538836,142.7,142.67,3.10448236]
[1763178555913,4.7919965,142.7,142.67,3.10448236]
[1763178558023,3.17660814,142.7,142.67,3.10448236]
[1763178558223,0.04660814,142.7,142.67,3.10448236]
[1763178563528,3.17660814,142.7,142.67,3.10448236]
[1763178568727,0.04660814,142.7,142.68,1.61538836]
[1763178568928,0.04660814,142.7,142.69,3.06]
[1763178570936,3.17660814,142.7,142.69,3.06]
[1763178571142,3.17660814,142.7,142.67,3.10448236]
[1763178574046,0.04660814,142.7,142.67,3.10448236]
[1763178574439,0.04660814,142.7,142.69,3.04]
[1763178584161,3.24660814,142.7,142.67,6.59300727]
[1763178584364,0.04660814,142.7,142.68,3.04]
[1763178584858,4.81538836,142.77,142.7,3.04]
[1763178585063,3.2,142.76,142.72,3.04]
[1763178585764,8.15599405,142.79,142.73,3.08446494]
[1763178585765,3.24940815,142.75,142.73,3.08446494]
[1763178586363,0.04940815,142.75,142.73,3.08446494]
[1763178587465,3.24940815,142.75,142.73,3.08446494]
[1763178587666,3.24940815,142.75,142.7,6.55308129]
[1763178587860,3.2,142.74,142.69,3.04]
[1763178588060,3.2,142.74,142.71,3.04]
[1763178588872,3.2,142.74,142.71,3.08726698]
[1763178590268,0.04940815,142.75,142.73,3.04]
[1763178590569,3.24940815,142.75,142.73,3.04]
[1763178591364,0.04940815,142.75,142.73,3.04]
[1763178594876,0.04940815,142.75,142.74,4.65538836]
[1763178595876,0.04940815,142.75,142.74,3.04]
[1763178601076,5.72014629,142.81,142.74,3.04]
[1763178601376,5.72014629,142.81,142.75,3.04]
[1763178602079,0.04497563,142.79,142.77,3.09153104]
[1763178615183,3.08,142.78,142.73,3.05]
[1763178616387,3.08,142.78,142.74,3.095448]
[1763178616576,3.08,142.76,142.74,3.095448]
[1763178616984,3.13366233,142.77,142.74,3.095448]
[1763178617685,3.13366233,142.77,142.74,0.045448]
[1763178617884,3.08,142.76,142.74,0.045448]
[1763178618090,3.08,142.74,142.67,3.05]
[1763178618289,3.08,142.72,142.67,3.05]
[1763178618894,3.08,142.7,142.67,3.05]
[1763178619093,3.12904662,142.7,142.67,0.04626942]
[1763178620192,0.04904662,142.7,142.67,3.09626942]
[1763178621000,3.12904662,142.7,142.67,3.09626942]
[1763178623892,0.04904662,142.7,142.67,3.09626942]
[1763178631700,3.12904662,142.7,142.67,3.09626942]
[1763178631903,0.04904662,142.7,142.67,3.09626942]
[1763178646512,3.32904662,142.7,142.67,0.04626942]
[1763178648018,3.32904662,142.7,142.67,3.10626942]
[1763178648517,3.32904662,142.7,142.67,0.04626942]
[1763178649811,0.04904662,142.7,142.67,3.10626942]
[1763178650518,3.32904662,142.7,142.67,3.10626942]
[1763178657014,0.04904662,142.7,142.67,3.10626942]
[1763178657212,0.04904662,142.7,142.67,9.65935071]
[1763178657416,0.04904662,142.7,142.68,3.06]
[1763178658922,0.04904662,142.7,142.68,6.55308129]
[1763178659125,0.04904662,142.7,142.69,3.06]
[1763178660423,0.04904662,142.7,142.69,9.61308129]
[1763178661221,0.04904662,142.7,142.69,3.06]
[1763178661427,0.04904662,142.7,142.69,9.61395949]
[1763178662226,0.04904662,142.7,142.69,3.06]
[1763178666036,3.38904662,142.7,142.68,11.78214714]
[1763178666335,3.38904662,142.7,142.68,6.56032944]
[1763178666735,3.38904662,142.7,142.69,6.56032944]
[1763178667835,0.04904662,142.7,142.69,6.56032944]
[1763178668038,0.04904662,142.7,142.69,9.61032944]
[1763178668241,0.04904662,142.7,142.69,3.05]
[1763178674543,3.29904662,142.7,142.69,6.56214598]
[1763178676043,0.04904662,142.7,142.69,6.56214598]
[1763178676345,0.04904662,142.7,142.69,9.62214598]
[1763178678450,3.29904662,142.7,142.69,6.56214598]
[1763178678640,3.29904662,142.7,142.68,6.56214598]
[1763178679044,3.29904662,142.7,142.68,9.62214598]
[1763178679240,3.29904662,142.7,142.68,6.56214598]
[1763178679646,3.29904662,142.7,142.68,9.62233168]
[1763178690459,3.29904662,142.7,142.68,9.62178301]
[1763178692253,3.29904662,142.7,142.69,3.06]
[1763178692960,0.04904662,142.7,142.69,3.06]
[1763178694061,3.37904662,142.7,142.68,9.62178301]
[1763178694255,3.37904662,142.7,142.69,9.62178301]
[1763178695765,3.37904662,142.7,142.69,6.56178301]
[1763178695959,3.37904662,142.7,142.68,6.56178301]
[1763178696458,3.33,142.69,142.6,8.73214714]
[1763178696659,3.33,142.65,142.6,11.79214714]
[1763178697058,3.33,142.65,142.6,3.06]
[1763178697257,3.33,142.63,142.6,3.06]
[1763178701859,0.0496809,142.64,142.6,3.06]
[1763178702055,0.0496809,142.64,142.62,3.06]
[1763178702464,3.33,142.69,142.64,3.06]
[1763178703457,3.37797025,142.68,142.65,3.10534369]
[1763178705860,3.37797025,142.68,142.65,4.71949115]
[1763178707061,3.37797025,142.68,142.66,3.06]
[1763178707666,3.37797025,142.68,142.65,4.71949115]
[1763178708368,3.37797025,142.68,142.66,3.06]
[1763178711160,0.04797025,142.68,142.67,4.67414746]
[1763178712069,3.33,142.73,142.68,3.06]
[1763178712270,3.33,142.73,142.69,1.61414746]
[1763178712668,3.33,142.73,142.7,3.06]
[1763178712863,3.37622586,142.73,142.7,3.10782589]
[1763178713870,3.37622586,142.73,142.7,0.04782589]
[1763178716568,4.99037332,142.73,142.7,0.04782589]
[1763178716773,3.33,142.7,142.65,3.06]
[1763178717671,3.33,142.68,142.66,0.05298931]
[1763178719283,3.33,142.68,142.62,3.06]
[1763178719972,3.33,142.68,142.61,1.61414746]
[1763178720377,3.33,142.65,142.61,4.67414746]
[1763178721877,3.33,142.65,142.62,3.06]
[1763178722472,3.33,142.65,142.6,1.61414746]
[1763178722673,3.33,142.63,142.6,4.67414746]
[1763178722872,3.33,142.63,142.6,3.06]
[1763178723078,3.3778109,142.64,142.61,3.06]
[1763178724274,0.0478109,142.64,142.61,3.06]
[1763178725677,0.0478109,142.64,142.63,3.06]
[1763178726774,0.0478109,142.64,142.6,2.52527251]
[1763178726974,3.4078109,142.64,142.61,3.06]
[1763178727667,0.0478109,142.64,142.61,3.06]
[1763178732873,0.0478109,142.64,142.63,3.04]
[1763178733182,3.29,142.69,142.63,3.04]
[1763178734082,0.04623948,142.67,142.66,3.04]
[1763178735572,3.29,142.71,142.66,3.04]
[1763178736478,0.04892606,142.7,142.66,3.04]
[1763178741482,3.16892606,142.7,142.66,3.04]
[1763178742490,5.69419857,142.7,142.65,0.04932268]
[1763178742790,3.12,142.69,142.65,0.04932268]
[1763178745689,3.12,142.67,142.65,0.04932268]
[1763178749885,3.16892606,142.7,142.65,3.10932268]
[1763178750086,3.12,142.69,142.65,3.10932268]
[1763178750591,3.12,142.69,142.65,0.04932268]
[1763178750892,3.12,142.69,142.65,3.10932268]
[1763178752494,3.12,142.67,142.65,0.04932268]
[1763178756297,3.12,142.67,142.65,3.10932268]
[1763178757297,3.12,142.67,142.65,0.04932268]
[1763178777205,3.26,142.65,142.59,11.79214714]
[1763178778005,2.52527251,142.66,142.59,11.79214714]
[1763178778006,3.30497759,142.63,142.61,0.04552813]
[1763178782200,3.26,142.61,142.57,3.06]
[1763178782907,3.26,142.6,142.55,3.06]
[1763178783406,3.30746329,142.59,142.55,3.06]
[1763178787413,4.92464143,142.59,142.54,3.06]
[1763178787604,3.14,142.58,142.54,3.06]
[1763178788612,3.14,142.58,142.52,3.06]
[1763178789212,3.14,142.56,142.5,3.06]
[1763178789514,1.61717814,142.57,142.5,3.06]
[1763178789515,3.18455905,142.54,142.5,3.06]
[1763178790409,3.18455905,142.54,142.49,3.06]
[1763178794519,0.04455905,142.54,142.51,3.06]
[1763178794713,0.04724981,142.54,142.53,3.06]
[1763178794915,0.04683085,142.55,142.53,3.06]
[1763178796915,0.04683085,142.55,142.54,4.67717814]
[1763178797112,3.35,142.6,142.55,3.06]
[1763178797916,3.35,142.6,142.57,3.06]
[1763178798116,3.39971592,142.6,142.57,3.10980619]
[1763178798316,3.39971592,142.6,142.57,0.04980619]
[1763178800820,3.39971592,142.6,142.57,3.10980619]
[1763178801222,3.39971592,142.6,142.57,0.04980619]
[1763178804824,0.04971592,142.6,142.58,3.06]
[1763178805226,0.04971592,142.6,142.59,4.67717814]
[1763178805824,0.04971592,142.6,142.59,1.61717814]
[1763178806130,0.04971592,142.6,142.59,4.67717814]
[1763178820142,3.22971592,142.6,142.59,1.61717814]
[1763178820443,0.04971592,142.6,142.59,4.67717814]
[1763178831247,3.22971592,142.6,142.59,1.61717814]
[1763178831450,0.04971592,142.6,142.59,4.67717814]
[1763178840551,3.18,142.65,142.6,3.06]
[1763178840743,3.18,142.65,142.62,3.06]
[1763178841553,3.23057393,142.65,142.62,3.10935492]
[1763178844557,3.23057393,142.65,142.62,0.04935492]
[1763178846755,3.23057393,142.65,142.62,3.10935492]
[1763178847455,3.23057393,142.65,142.62,0.04935492]
[1763178850964,3.23057393,142.65,142.62,3.10935492]
[1763178851971,3.23057393,142.65,142.62,0.04935492]
[1763178853164,3.18,142.64,142.62,0.04935492]
[1763178860271,5.70501305,142.63,142.62,0.04935492]
[1763178860968,3.18,142.62,142.55,11.79214714]
[1763178861168,9.06696911,142.64,142.55,11.79214714]
[1763178861169,3.18,142.6,142.55,11.79214714]
[1763178861771,3.18,142.6,142.56,3.06]
[1763178861974,3.18,142.58,142.57,0.04492425]
[1763178871082,3.18,142.58,142.57,3.10492425]
[1763178871284,3.18,142.58,142.57,0.04492425]
[1763178885595,0.05249304,142.59,142.57,3.11492425]
[1763178886689,3.08,142.63,142.58,3.07]
[1763178886893,3.08,142.63,142.59,3.07]
[1763178887698,0.04657142,142.62,142.6,3.12051553]
[1763178887995,3.12657142,142.62,142.6,0.05051553]
[1763178889193,3.12657142,142.62,142.6,3.12051553]
[1763178889395,3.12657142,142.62,142.6,0.05051553]
[1763178898806,3.12657142,142.62,142.55,3.07]
[1763178899498,3.12657142,142.62,142.55,11.81690026]
[1763178899701,3.12657142,142.62,142.57,0.04912899]
[1763178900507,3.08,142.6,142.57,0.04912899]
[1763178900698,3.08,142.58,142.52,8.74690026]
[1763178900897,3.08,142.58,142.51,11.81690026]
[1763178901702,3.08,142.55,142.51,11.81690026]
[1763178902204,3.08,142.55,142.52,3.07]
[1763178902403,3.08,142.55,142.51,11.81690026]
[1763178903206,3.08,142.55,142.51,3.07]
[1763178903500,5.60501305,142.55,142.49,8.74690026]
[1763178903705,3.35,142.52,142.49,11.81690026]
[1763178903907,3.35,142.52,142.49,3.07]
[1763178907401,0.04682582,142.53,142.49,3.07]
[1763178907402,3.39682582,142.53,142.49,3.07]
[1763178908407,0.04682582,142.53,142.52,3.07]
[1763178908803,3.35,142.58,142.53,3.07]
[1763178909108,3.35,142.58,142.54,3.07]
[1763178909799,244.0,142.7,142.56,3.07]
[1763178909800,0.05361857,142.57,142.56,3.07]
[1763178909997,0.05331006,142.58,142.56,3.07]
[1763178910204,8.72211379,142.7,142.56,3.07]
[1763178910205,3.35,142.67,142.58,3.07]
[1763178910503,3.16,142.69,142.64,1.61880284]
[1763178910696,3.16,142.69,142.65,3.06]
[1763178910901,3.16,142.72,142.66,4.67880284]
[1763178911102,0.04566885,142.7,142.68,3.10713806]
[1763178911408,0.04566885,142.7,142.68,4.7259409]
[1763178912796,3.20566885,142.7,142.68,1.6659409]
[1763178913908,3.20566885,142.7,142.68,0.04713806]
[1763178914810,3.20566885,142.7,142.68,3.10713806]
[1763178915512,0.04566885,142.7,142.69,3.06]
[1763178927307,3.20566885,142.7,142.68,0.04713806]
[1763178927620,3.20566885,142.7,142.68,3.10713806]
[1763178928419,0.04566885,142.7,142.68,3.10713806]
[1763178931508,3.20566885,142.7,142.68,3.10713806]
[1763178931710,0.04566885,142.7,142.68,3.10713806]
[1763178937010,1.61880284,142.73,142.68,3.10713806]
[1763178937212,1.61880284,142.75,142.68,3.10713806]
[1763178937412,1.61880284,142.75,142.68,3.06]
[1763178938220,1.61880284,142.75,142.67,1.61880284]
[1763178938221,0.05027169,142.73,142.71,3.06]
[1763178938818,1.66907453,142.73,142.71,3.06]
[1763178942924,0.05027169,142.73,142.71,3.06]
[1763178947136,1.61880284,142.76,142.71,3.06]
[1763178947425,4.94880284,142.76,142.71,3.06]
[1763178947630,3.33,142.73,142.71,3.06]
[1763178947829,1.61880284,142.74,142.71,3.06]
[1763178948030,1.66959819,142.74,142.71,3.11356117]
[1763178948334,0.05079535,142.74,142.71,3.11356117]
[1763178951233,0.05079535,142.74,142.71,4.73236401]
[1763178951533,0.05079535,142.74,142.72,3.06]
[1763178955635,3.38079535,142.74,142.71,0.05356117]
[1763178955837,4.94880284,142.73,142.71,0.05356117]